Cogmind - Beta 11.1 @@@ ROGUE MODE // 2022.06.07 @ 14:28:11 Player: btmk16 Result: Self-destructed Performance ------------- Evolutions (8) 4000 Regions Visited (13) 2600 Robots Destroyed (188) 940 Value Destroyed (5498) 5498 Prototype IDs (8) 160 Alien Tech Used (0) 0 Bonus (2234) 2234 TOTAL SCORE: 15432 Bonus ------- High Alert Combat Kills 612 Follower Combat Kills 443 Entered Garrisons 200 Used RIF Installer 500 Entered DSFs 500 Friendly Fire -21 Cogmind --------- Core Integrity 611/1450 Matter 300/300 Energy 9/100 System Corruption 4% Temperature Cool (0) Movement Core (50) Location -2/Research Parts ------- > --- POWER (2) -------- (None) > --- PROPULSION (6) --- (None) > --- UTILITY (12) ----- Advanced Signal Interpreter Improved Melee Analysis Suite > --- WEAPON (3) ------- (None) > --- INVENTORY (5) ---- Improved Terrain Scanner Heavy Flail Peak State ------------ > --- POWER ------------ Micro Nuclear Core Particle Reactor > --- PROPULSION ------- VTOL Module VTOL Module VTOL Module Improved Flight Unit Xenon Bombardment Thruster > --- UTILITY ---------- Structural Scanner Experimental Sensor Array Advanced Signal Interpreter Transmission Jammer Cloaking Device Improved Propulsion Shielding Layered Light Armor Plating Hacking Suite Hacking Suite Advanced System Shield > --- WEAPON ----------- Lance > --- INVENTORY -------- Neutrino Core Advanced Visual Processing Unit Improved Melee Analysis Suite Rocket Launcher Heavy Flail [Rating: 75] Favorites ----------- Power Cooled Ion Engine Engine Cooled Ion Engine Power Core Enhanced Nuclear Core Reactor Light Antimatter Reactor Propulsion Advanced Treads Treads Advanced Treads Leg Aluminum Leg Wheel Compact Wheel Hover Unit Aerolev Unit Flight Unit Xenon Bombardment Thruster Utility Hacking Suite Device Transmission Jammer Storage High-capacity Storage Unit Processor Targeting Computer Hackware Hacking Suite Protection Hardened Medium Armor Plating Weapon Gauss Rifle Energy Gun Small Laser Energy Cannon Enhanced Nova Cannon Ballistic Gun Gauss Rifle Ballistic Cannon Light Cannon Launcher Rocket Launcher Impact Weapon Heavy Mace Slashing Weapon Katana Piercing Weapon Lance Build | -11 -10 -10 -9 -8 -8 -7 -6 -5 -4 -3 -3 -3 -2 ------- Run | Scr Mat Min Mat Mat Sto Fac Fac Fac Fac Res DSF Gar Res Slots Evolved 16 | . . . 2 2 . 2 2 2 2 2 . . 2 Power 1 | . . . . . . . . . . 1 . . . Propulsion 4 | . . . . 1 . . 1 . 1 1 . . . Utility 10 | . . . 2 . . 2 1 2 1 . . . 2 Weapon 1 | . . . . 1 . . . . . . . . . Parts Attached 160 | . 10 3 18 24 19 17 27 15 3 1 1 2 20 Power 15 | . 1 . 3 1 . 2 1 1 . . 1 . 5 Engine 7 | . 1 . 3 1 . 1 . . . . . . 1 Core 4 | . . . . . . 1 1 1 . . . . 1 Reactor 4 | . . . . . . . . . . . 1 . 3 Propulsion 49 | . 4 . 7 8 8 4 7 4 1 . . 1 5 Treads 26 | . . . 7 8 6 4 . . . . . . 1 Leg 2 | . 2 . . . . . . . . . . . . Wheel 3 | . 2 . . . . . 1 . . . . . . Hover 1 | . . . . . 1 . . . . . . . . Flight 17 | . . . . . 1 . 6 4 1 . . 1 4 Utility 41 | . 2 2 5 5 1 6 11 2 2 1 . . 4 Device 18 | . 1 2 2 . . 2 7 2 . . . . 2 Storage 1 | . 1 . . . . . . . . . . . . Processor 5 | . . . 2 . . . 1 . . . . . 2 Hackware 5 | . . . . 3 . . 1 . . 1 . . . Protection 12 | . . . 1 2 1 4 2 . 2 . . . . Artifact . | . . . . . . . . . . . . . . Weapon 55 | . 3 1 3 10 10 5 8 8 . . . 1 6 Energy Gun 4 | . 2 . . . . . . . . . . . 2 Energy Cannon 2 | . . . . . . . . . . . . . 2 Ballistic Gun 26 | . . 1 3 8 8 3 3 . . . . . . Ballistic Cannon 2 | . 1 . . . . . . 1 . . . . . Launcher 10 | . . . . 2 1 . . 4 . . . 1 2 Special Weapon . | . . . . . . . . . . . . . . Impact Weapon 5 | . . . . . . . 4 1 . . . . . Slashing Weapon 4 | . . . . . 1 2 1 . . . . . . Piercing Weapon 2 | . . . . . . . . 2 . . . . . Special Melee Weapon . | . . . . . . . . . . . . . . Unidentified Prototypes 8 | . . 1 1 2 3 1 . . . . . . . Parts Lost 55 | . 3 . 4 1 . 8 5 3 3 . . 15 13 Power 7 | . 1 . 1 . . 1 1 . . . . . 3 Propulsion 21 | . 1 . 1 1 . 3 2 3 . . . 6 4 Utility 18 | . . . 2 . . 3 1 . 2 . . 9 1 Weapon 9 | . 1 . . . . 1 1 . 1 . . . 5 Highest Loss Streak 15 | . 2 . 3 1 . 2 3 1 3 . . 15 9 To Critical Strikes . | . . . . . . . . . . . . . . Average Slot Usage (%) 94 | . 91 99 99 98 99 99 88 95 89 80 81 53 23 Engine 7 | . 13 14 11 9 9 3 3 . . . . . . Core 1 | . . . . . . 3 1 5 5 4 4 1 1 Treads 17 | . . . 20 26 26 22 10 . . . . . 2 Wheel 2 | . 11 28 1 . . . 2 . . . . . . Flight 2 | . . . . . . . 8 22 26 23 23 14 1 Device 9 | . 7 13 15 . . 7 16 29 24 19 19 11 . Storage 7 | . 14 14 11 9 9 7 4 . . . . . . Processor 6 | . . . 14 16 . . 1 5 5 4 4 4 8 Hackware 8 | . . . . 2 19 15 14 11 10 14 14 7 . Protection 6 | . . . 3 8 7 14 5 5 8 9 9 7 . Energy Gun 1 | . 13 14 2 . . . . . . . . . 1 Ballistic Gun 18 | . 14 14 19 26 25 21 13 . . . . . . Naked Turns . | . . . . . . . . . . . . . . Heaviest Build 75 | 12 48 48 57 64 68 75 75 22 21 19 19 19 47 Greatest Support 75 | 20 26 26 40 60 66 66 66 23 23 23 19 23 75 Greatest Overweight (x) 2 | . 1 1 1 1 1 1 2 . . . 1 . . Average Overweight (x) . | . . 1 1 . . 1 . . . . . . . Largest Inventory Capacity 20 | . 20 20 20 20 20 20 20 5 5 5 5 5 5 Average Capacity 17 | . 12 20 20 20 20 20 16 5 5 5 5 5 5 Most Carried 20 | . 16 20 20 20 20 20 20 5 5 5 5 5 5 Average Carried 16 | . 9 18 19 19 19 19 14 4 3 5 5 4 3 Final Capacity 20 | 8 20 20 20 20 20 20 5 5 5 5 5 5 5 Final Carried 20 | 6 16 20 20 20 20 17 5 4 5 5 5 5 2 Class Distribution -------------------- 33% | Hacker-Tank 30% | Mutant 12% | Gunner 7% | Hacker-Ninja 5% | Hacker-Mutant 4% | Scavenger-Mutant Dominant Class ---------------- Mutant | -10/Materials Mutant | -10/Mines Mutant | -9/Materials Gunner | -8/Materials Hacker-Tank | -8/Storage Hacker-Tank | -7/Factory Hacker-Tank | -6/Factory Hacker-Ninja | -5/Factory Hacker-Ninja | -4/Factory Hacker-Ninja | -3/Research Hacker-Assassin | -3/DSF Mutant | -3/Garrison Mutant | -2/Research Resources | -11 -10 -10 -9 -8 -8 -7 -6 -5 -4 -3 -3 -3 -2 ----------- Run | Scr Mat Min Mat Mat Sto Fac Fac Fac Fac Res DSF Gar Res Matter Collected 5163 | 200 121 58 629 966 937 1011 664 316 111 . . 10 140 Remotely . | . . . . . . . . . . . . . . Salvage Created 7527 | . 295 109 1159 1380 1243 1519 797 449 191 . . 105 280 Parts 380 | . 14 16 66 68 60 78 29 16 9 . . 8 16 Haulers Intercepted 19 | . 1 . 5 4 6 2 1 . . . . . . Recyclers Shooed 3 | . . . 1 . . . . 1 1 . . . . Parts Field Recycled . | . . . . . . . . . . . . . . Retrieved Matter . | . . . . . . . . . . . . . . Parts Self-Destructed . | . . . . . . . . . . . . . . Prevented . | . . . . . . . . . . . . . . Kills | -11 -10 -10 -9 -8 -8 -7 -6 -5 -4 -3 -3 -3 -2 ------- Run | Scr Mat Min Mat Mat Sto Fac Fac Fac Fac Res DSF Gar Res Combat Hostiles Destroyed 137 | . 7 9 20 28 16 27 11 10 . . . 3 6 Melee 8 | . . . . . . . . 2 . . . 2 4 Guns 111 | . 6 9 20 24 16 24 11 . . . . . 1 Cannons 1 | . . . . . . . . . . . . . 1 AOE 17 | . 1 . . 4 . 3 . 8 . . . 1 . Classes Destroyed 14 | . 3 . 5 4 1 1 . . . . . . . Worker 10 | . . . . 2 4 3 . 1 . . . . . Builder 6 | . . . 1 . . 5 . . . . . . . Tunneler 3 | . . . . 1 . . . . 1 . . . 1 Hauler 19 | . 1 . 5 4 6 2 1 . . . . . . Recycler 7 | . . . 2 1 . . 1 2 1 . . . . Operator 3 | . . . . 1 1 . . . 1 . . . . Watcher 3 | . . . 1 . . . . 1 1 . . . . Swarmer 54 | . 3 9 6 11 . 4 3 10 . . . 3 5 Grunt 51 | . 4 . 8 8 10 15 6 . . . . . . Brawler 3 | . . . . . 1 2 . . . . . . . Duelist 2 | . . . 1 1 . . . . . . . . . Sentry 19 | . . . 5 6 5 2 . . . . . . 1 Hunter 4 | . . . . 2 . 2 . . . . . . . Programmer 4 | . . . . . . 2 2 . . . . . . Best Kill Streak 7 | . 3 3 6 7 3 7 3 6 2 . . 2 1 Combat Bots Only 6 | . 3 3 3 6 3 5 3 5 . . . 2 1 Max Kills in Single Turn 5 | . 2 1 1 2 2 5 1 3 1 . . 1 1 Gunslinging 1 | . . . . . 1 . . . . . . . . Exploded 3 | . 1 . . 2 . 3 . 3 . . . 1 . Melee 1 | . . . . . . . . 1 . . . 1 1 Uniques/NPCs Destroyed . | . . . . . . . . . . . . . . Combat | -11 -10 -10 -9 -8 -8 -7 -6 -5 -4 -3 -3 -3 -2 -------- Run | Scr Mat Min Mat Mat Sto Fac Fac Fac Fac Res DSF Gar Res Damage Taken 10065 | . 439 131 621 1149 871 1919 733 545 117 . . 1153 2387 Core 2323 | . 58 36 64 211 81 277 116 188 47 . . 406 839 Absorbed by Shields 31 | . . . . . . 31 . . . . . . . Reduced by Siege Mode 61 | . . . . . . . . . . . . . 61 Redirected to Shielding 215 | . . . . . . . . 75 29 . . 111 . Core Remaining (%) 75 | 100 . 62 84 . 46 60 86 81 95 . . 68 . Volleys Fired 378 | . 30 18 70 64 59 73 33 16 . . . 2 13 Largest 3 | . 2 2 2 3 3 3 3 1 . . . 1 2 Hottest 159 | . 60 60 60 84 86 81 84 61 . . . 33 159 Shots Fired 937 | . 60 35 140 182 173 216 97 16 . . . 2 16 Gun 909 | . 60 35 140 179 172 216 97 . . . . . 10 Cannon 9 | . . . . . . . . 3 . . . . 6 Launcher 19 | . . . . 3 1 . . 13 . . . 2 . Special . | . . . . . . . . . . . . . . Kinetic 842 | . 30 18 127 179 172 216 97 3 . . . . . Thermal 67 | . 21 17 13 . . . . . . . . . 16 Explosive 19 | . . . . 3 1 . . 13 . . . 2 . Electromagnetic 9 | . 9 . . . . . . . . . . . . Robot Hit Streak 22 | . 7 8 22 16 20 20 10 3 . . . . 9 Robot Miss Streak 5 | . 3 3 4 3 3 5 2 3 . . . 2 4 Penetration Max 1 | . . . . 1 1 1 . . . . . . . Secondary Targets 9 | . 1 . 2 2 3 . . . . . . . 1 Max Gunslinging Chain 1 | . 1 . 1 1 1 . . . . . . . 1 Shots Hit Robots 634 | . 41 17 93 118 107 143 69 14 6 . . 2 24 Core Hits 302 | . 16 9 46 58 41 66 29 16 3 . . 8 10 Critical Kills 3 | . . . 1 . 2 . . . . . . . . Critical Parts Destroyed 11 | . . . . 5 3 2 . 1 . . . . . Critical Strikes 20 | . . . 1 5 5 2 . 2 2 . . . 3 Destroy 13 | . . . 1 5 5 2 . . . . . . . Smash 1 | . . . . . . . . 1 . . . . . Sever 1 | . . . . . . . . 1 . . . . . Impale 5 | . . . . . . . . . 2 . . . 3 Melee Attacks 97 | . . . . . 1 8 7 33 17 . . 5 26 Impact 19 | . . . . . . . 2 17 . . . . . Slashing 26 | . . . . . 1 8 5 11 1 . . . . Piercing 52 | . . . . . . . . 5 16 . . 5 26 Sneak Attacks 7 | . . . . . . 1 . 3 2 . . . 1 Combat Hostiles . | . . . . . . . . . . . . . . Follow-up Attacks 3 | . . . . . . . . 2 1 . . . . Damage Inflicted 14598 | . 495 163 1334 2712 2206 3452 1406 1113 402 . . 335 980 Guns 11005 | . 415 163 1334 2306 2206 2890 1406 . . . . . 285 Cannons 147 | . . . . . . . . . . . . . 147 Explosions 1828 | . 80 . . 406 . 491 . 575 . . . 276 . Melee 1617 | . . . . . . 71 . 538 402 . . 59 547 Ramming 1 | . . . . . . . . . . . . . 1 Kinetic 10293 | . 159 77 1249 2306 2206 2890 1406 . . . . . . Thermal 1349 | . 255 86 85 . . 491 . . . . . . 432 Explosive 1257 | . . . . 406 . . . 575 . . . 276 . Electromagnetic 81 | . 81 . . . . . . . . . . . . Impact 375 | . . . . . . . . 375 . . . . . Slashing 274 | . . . . . . 71 . 163 40 . . . . Piercing 968 | . . . . . . . . . 362 . . 59 547 Highest Corruption 5 | . 2 2 . 4 5 . 1 1 . . . . 4 Average Corruption 3 | . 2 2 . 3 4 . 1 1 . . . . 2 Corruption Purged . | . . . . . . . . . . . . . . Corruption Blocked . | . . . . . . . . . . . . . . Effects 63 | . 3 2 . 27 24 . 7 . . . . . . Message Errors 13 | . 1 . . 5 7 . . . . . . . . Matter Fused 13 | . . 1 . 4 7 . 1 . . . . . . Heat Flow Errors 12 | . 1 . . 6 5 . . . . . . . . Energy Discharges 11 | . . . . 6 2 . 3 . . . . . . Parts Rejected 2 | . . . . . 2 . . . . . . . . Data Loss (minor) 6 | . . . . 3 1 . 2 . . . . . . Misfires 1 | . . . . 1 . . . . . . . . . Alerts 2 | . 1 . . . . . 1 . . . . . . Weapon Failures 3 | . . 1 . 2 . . . . . . . . . Overload Shots . | . . . . . . . . . . . . . . Overflow Damage 584 | . . . . 18 . 36 . 299 222 . . . 9 Projectiles . | . . . . . . . . . . . . . . Explosions 68 | . . . . 18 . 36 . 14 . . . . . Melee 516 | . . . . . . . . 285 222 . . . 9 Knockbacks 2 | . . . . . . . . 2 . . . . . Impact 2 | . . . . . . . . 2 . . . . . Kinetic . | . . . . . . . . . . . . . . Secondary . | . . . . . . . . . . . . . . Self-Inflicted Damage 471 | . 35 . . . . 389 . 47 . . . . . Shots 6 | . 1 . . . . 4 . 1 . . . . . Rammed 1 | . . . . . . . . . . . . . 1 Targets Rammed 1 | . . . . . . . . . . . . . 1 Kicked . | . . . . . . . . . . . . . . Crushed . | . . . . . . . . . . . . . . Highest Temperature 303 | . 116 . 18 238 294 303 7 15 . . . . 186 Average Temperature 58 | . 42 . 7 43 69 71 5 8 . . . . 75 Received Heat Transfer 1887 | . 168 . 246 306 342 471 162 81 27 . . 39 45 Effects 1 | . . . . . . 1 . . . . . . . Energy Bleed 1 | . . . . . . 1 . . . . . . . Siege Activations 1 | . . . . . . . . . . . . . 1 Total Turns 17 | . . . . . . . . . . . . . 17 Longest Duration 17 | . . . . . . . . . . . . . 17 Robots Corrupted . | . . . . . . . . . . . . . . Combat Hostiles . | . . . . . . . . . . . . . . Parts Fried 3 | . . . . . . . . 3 . . . . . Impact Corruptions 9 | . . . . . . . . 9 . . . . . Robots Melted . | . . . . . . . . . . . . . . Combat Hostiles . | . . . . . . . . . . . . . . Parts Melted 3 | . 2 1 . . . . . . . . . . . Heat Transferred 1731 | . 550 200 200 . . 300 . . . . . . 481 Parts Sabotaged . | . . . . . . . . . . . . . . Parts Stolen . | . . . . . . . . . . . . . . Parts Stripped . | . . . . . . . . . . . . . . Power Chain Reactions 1 | . 1 . . . . . . . . . . . . Missiles Intercepted . | . . . . . . . . . . . . . . Alert | -11 -10 -10 -9 -8 -8 -7 -6 -5 -4 -3 -3 -3 -2 ------- Run | Scr Mat Min Mat Mat Sto Fac Fac Fac Fac Res DSF Gar Res Peak Influence 791 | . 231 222 321 791 778 750 529 648 413 216 177 214 243 Initial 367 | . . 12 86 111 286 353 367 193 257 216 162 132 108 Average 324 | . 130 93 140 509 455 369 382 437 353 216 169 162 160 Maximum Alert Level 3 | . 1 1 1 3 3 3 2 2 2 1 . 1 1 Low Security (%) 29 | . 59 91 68 7 9 13 . 3 . . 100 92 73 Level 1 39 | . 40 8 31 24 34 57 67 22 74 100 . 7 26 Level 2 25 | . . . . 49 47 24 32 74 25 . . . . Level 3 4 | . . . . 18 8 4 . . . . . . . Level 4 . | . . . . . . . . . . . . . . Level 5 . | . . . . . . . . . . . . . . High Security . | . . . . . . . . . . . . . . Max Security . | . . . . . . . . . . . . . . Squads Dispatched 29 | . 2 . 4 3 6 6 2 1 1 . . . 4 Investigation 6 | . 1 . 1 . 2 1 . . 1 . . . . Extermination 6 | . . . . . . 2 2 1 . . . . 1 Reinforcement 9 | . 1 . 3 1 1 3 . . . . . . . Assault 2 | . . . . 2 . . . . . . . . . Garrison 6 | . . . . . 3 . . . . . . . 3 Intercept . | . . . . . . . . . . . . . . Searches Triggered . | . . . . . . . . . . . . . . Construction Impeded . | . . . . . . . . . . . . . . Haulers Reinforced 2 | . . . . . . 2 . . . . . . . Active Scanning Responses . | . . . . . . . . . . . . . . Cargo Convoy Interrupts . | . . . . . . . . . . . . . . Stealth | -11 -10 -10 -9 -8 -8 -7 -6 -5 -4 -3 -3 -3 -2 --------- Run | Scr Mat Min Mat Mat Sto Fac Fac Fac Fac Res DSF Gar Res Distress Signals 11 | . 1 . 2 4 3 . . 1 . . . . . Communications Jammed 32 | . . . . . . 32 . . . . . . . Distress Signals 32 | . . . . . . 32 . . . . . . . Times Spotted 235 | . 12 9 26 51 33 33 17 21 5 . 1 16 11 Peak Tracking Total 18 | . 4 3 7 8 5 6 4 7 4 . 1 18 6 Tactical Retreats 14 | . . . 1 4 1 . 1 3 . . 1 2 1 Traps | -11 -10 -10 -9 -8 -8 -7 -6 -5 -4 -3 -3 -3 -2 ------- Run | Scr Mat Min Mat Mat Sto Fac Fac Fac Fac Res DSF Gar Res Traps Triggered 14 | . 2 . 1 2 2 4 2 1 . . . . . Indirectly . | . . . . . . . . . . . . . . Trap Hack Attempts . | . . . . . . . . . . . . . . Triggered . | . . . . . . . . . . . . . . Disarmed . | . . . . . . . . . . . . . . Reprogrammed . | . . . . . . . . . . . . . . Reused . | . . . . . . . . . . . . . . Traps Extracted . | . . . . . . . . . . . . . . Installed . | . . . . . . . . . . . . . . Triggered . | . . . . . . . . . . . . . . Machines | -11 -10 -10 -9 -8 -8 -7 -6 -5 -4 -3 -3 -3 -2 ---------- Run | Scr Mat Min Mat Mat Sto Fac Fac Fac Fac Res DSF Gar Res Machines Disabled 20 | . 1 . . 5 6 7 1 . . . . . . Max in Single Turn 4 | . 1 . . 1 1 4 1 . . . . . . Garrison Access 1 | . . . . . . . . 1 . . . . . Machines Sabotaged . | . . . . . . . . . . . . . . Garrisons Compromised 1 | . . . . . . . 1 . . . . . . Overloaded Fab Kills . | . . . . . . . . . . . . . . Hacking | -11 -10 -10 -9 -8 -8 -7 -6 -5 -4 -3 -3 -3 -2 --------- Run | Scr Mat Min Mat Mat Sto Fac Fac Fac Fac Res DSF Gar Res Machines Accessed 31 | . 2 . 3 3 6 2 6 2 4 1 . . 2 Terminals 24 | . 2 . 3 3 6 1 3 1 4 1 . . . Fabricators 5 | . . . . . . 1 3 . . . . . 1 Repair Stations 1 | . . . . . . . . . . . . . 1 Recycling Units . | . . . . . . . . . . . . . . Scanalyzers . | . . . . . . . . . . . . . . Garrison Access 1 | . . . . . . . . 1 . . . . . Total Hacks 62 | . 3 . 7 4 12 5 11 5 9 1 . . 5 Successful 33 | . . . 4 2 9 3 6 2 5 1 . . 1 Failed 29 | . 3 . 3 2 3 2 5 3 4 . . . 4 Catastrophic 3 | . 1 . . 1 . 1 . . . . . . . Database Lockouts . | . . . . . . . . . . . . . . Manual 26 | . 1 . 1 2 5 3 8 . 5 . . . 1 Terminals 47 | . 3 . 7 4 12 2 6 3 9 1 . . . Fabricators 9 | . . . . . . 3 5 . . . . . 1 Repair Stations 4 | . . . . . . . . . . . . . 4 Recycling Units . | . . . . . . . . . . . . . . Scanalyzers . | . . . . . . . . . . . . . . Garrison Access 2 | . . . . . . . . 2 . . . . . Terminal Hacks 24 | . . . 3 2 9 1 3 1 4 1 . . . Robot Schematic 1 | . . . . . 1 . . . . . . . . Robot Analysis 2 | . . . 1 . 1 . . . . . . . . Open Door 4 | . . . . . 4 . . . . . . . . Open DSF 1 | . . . . . . . . . . 1 . . . Level Access Points 5 | . . . . . 1 1 1 1 1 . . . . Branch Access Points 1 | . . . . . . . . . 1 . . . . Machine Index 1 | . . . . . . . . . 1 . . . . Alert Level 3 | . . . . . 1 . 1 . 1 . . . . Unreport Threat 1 | . . . . . 1 . . . . . . . . Recall Extermination 1 | . . . . . . . 1 . . . . . . Recall Assault 1 | . . . . 1 . . . . . . . . . Hauler Manifests 2 | . . . 1 1 . . . . . . . . . Zone Layout 1 | . . . 1 . . . . . . . . . . Fabricator Hacks 3 | . . . . . . 2 1 . . . . . . Network Status 3 | . . . . . . 2 1 . . . . . . Repair Station Hacks 1 | . . . . . . . . . . . . . 1 Scan Component 1 | . . . . . . . . . . . . . 1 Recycling Unit Hacks . | . . . . . . . . . . . . . . Scanalyzer . | . . . . . . . . . . . . . . Garrison Access Hacks 1 | . . . . . . . . 1 . . . . . Seal Access 1 | . . . . . . . . 1 . . . . . Unauthorized Hacks 4 | . . . 1 . . . 2 . 1 . . . . Terminals 2 | . . . 1 . . . . . 1 . . . . Track 1 | . . . 1 . . . . . . . . . . Botnet 1 | . . . . . . . . . 1 . . . . Fabricators 2 | . . . . . . . 2 . . . . . . Fabnet 2 | . . . . . . . 2 . . . . . . Repair Stations . | . . . . . . . . . . . . . . Recycling Units . | . . . . . . . . . . . . . . Scanalyzers . | . . . . . . . . . . . . . . Garrison Access . | . . . . . . . . . . . . . . Data Cores Recovered . | . . . . . . . . . . . . . . Used . | . . . . . . . . . . . . . . Hacking Detections 21 | . 2 . 2 1 3 2 4 1 4 . . . 2 Full Trace Events 3 | . . . . . 1 1 . . 1 . . . . Feedback Events . | . . . . . . . . . . . . . . Feedback Blocked . | . . . . . . . . . . . . . . Robot Schematics Acquired 1 | . . . . . 1 . . . . . . . . Robots Built . | . . . . . . . . . . . . . . Authchips . | . . . . . . . . . . . . . . Time . | . . . . . . . . . . . . . . Total Robot Build Rating . | . . . . . . . . . . . . . . Part Schematics Acquired . | . . . . . . . . . . . . . . Parts Built . | . . . . . . . . . . . . . . Authchips . | . . . . . . . . . . . . . . Time . | . . . . . . . . . . . . . . Total Part Build Rating . | . . . . . . . . . . . . . . Parts Repaired . | . . . . . . . . . . . . . . Time . | . . . . . . . . . . . . . . Parts Recycled . | . . . . . . . . . . . . . . Recycled Matter . | . . . . . . . . . . . . . . Retrieved Matter . | . . . . . . . . . . . . . . Retrieved Components . | . . . . . . . . . . . . . . Parts Scanalyzed . | . . . . . . . . . . . . . . Part Schematics Acquired . | . . . . . . . . . . . . . . Parts Damaged . | . . . . . . . . . . . . . . Bothacking | -11 -10 -10 -9 -8 -8 -7 -6 -5 -4 -3 -3 -3 -2 ------------ Run | Scr Mat Min Mat Mat Sto Fac Fac Fac Fac Res DSF Gar Res Used RIF Installer 1 | . . . . . . . . . . . . 1 . Robots Hacked . | . . . . . . . . . . . . . . Non-combat . | . . . . . . . . . . . . . . Combat . | . . . . . . . . . . . . . . Robot Hacks Applied . | . . . . . . . . . . . . . . Relay Couplers Released . | . . . . . . . . . . . . . . Fabnet Peak Effective % 6 | . . . . . . . . 6 2 . . . . Robots Rewired . | . . . . . . . . . . . . . . Allies Hacked . | . . . . . . . . . . . . . . Hacks Repelled . | . . . . . . . . . . . . . . Allies | -11 -10 -10 -9 -8 -8 -7 -6 -5 -4 -3 -3 -3 -2 -------- Run | Scr Mat Min Mat Mat Sto Fac Fac Fac Fac Res DSF Gar Res Total Allies 22 | . . . . . 10 . 12 . . . . . . Largest Group 10 | . . . . . 10 . 4 . . . . . . Highest-Rated Group 173 | . . . . . 173 . 90 . . . . . . Highest-Rated Ally 31 | . . . . . 29 . 31 . . . . . . Total Orders 1 | . . . . . . . 1 . . . . . . EXPLORE 1 | . . . . . . . 1 . . . . . . Ally Attacks 135 | . . . . . 135 . . . . . . . . Total Damage 1815 | . . . . . 1815 . . . . . . . . Kills 15 | . . . . . 15 . . . . . . . . Allies Corrupted . | . . . . . . . . . . . . . . Allies Melted . | . . . . . . . . . . . . . . Intel | -11 -10 -10 -9 -8 -8 -7 -6 -5 -4 -3 -3 -3 -2 ------- Run | Scr Mat Min Mat Mat Sto Fac Fac Fac Fac Res DSF Gar Res Robot Analysis Total 2 | . . . 1 . 1 . . . . . . . . Derelict Logs Recovered 1 | . . 1 . . . . . . . . . . . Drone Launches 1 | . . . . . . . 1 . . . . . . Drone Recoveries 1 | . . . . . . . 1 . . . . . . Exploration | -11 -10 -10 -9 -8 -8 -7 -6 -5 -4 -3 -3 -3 -2 ------------- Run | Scr Mat Min Mat Mat Sto Fac Fac Fac Fac Res DSF Gar Res Turns Passed 9337 | . 433 380 1984 1386 1152 1842 1106 454 134 65 48 52 301 Spaces Moved 5452 | 1 279 298 676 509 438 691 965 640 333 228 84 101 209 Core 84 | . . . . . . . . . . . . 5 79 Treads 2407 | . . . 596 509 438 691 119 . . . . . 54 Legs 131 | 1 130 . . . . . . . . . . . . Wheels 746 | . 149 298 80 . . . 219 . . . . . . Hover . | . . . . . . . . . . . . . . Flight 2084 | . . . . . . . 627 640 333 228 84 96 76 Fastest Speed 25 | 120 105 105 105 160 145 225 29 28 25 25 28 25 37 Average Speed 129 | 120 111 105 224 223 207 225 76 29 25 27 51 28 70 Slowest Speed 240 | 120 120 105 240 240 240 225 225 31 25 28 108 50 145 Overloaded Moves . | . . . . . . . . . . . . . . Propulsion Burnouts . | . . . . . . . . . . . . . . Robots Hopped . | . . . . . . . . . . . . . . Cave-ins Triggered . | . . . . . . . . . . . . . . Exploration Rate (%) 37 | 3 60 60 57 66 70 20 34 21 11 6 78 36 8 Regions Visited 13 Branch Regions 2 Pre-discovered Areas . | . . . . . . . . . . . . . . Known Exits Taken 6 | . . . . . 1 1 1 1 1 1 . . . Unknown Exits Taken 5 | 1 1 1 1 1 . . . . . . . . . Scrap Searched . | . . . . . . . . . . . . . . Spaces Dug 68 | . . . . . 13 6 7 35 7 . . . . Terrain Destroyed 248 | . 2 . . 10 32 34 7 138 7 . . 15 3 Melee 35 | . . . . . . 6 7 15 7 . . . . Projectile 8 | . . . . 1 4 . . . . . . . 3 AOE 205 | . 2 . . 9 28 28 . 123 . . . 15 . Terrain Rammed . | . . . . . . . . . . . . . . Walls Destroyed . | . . . . . . . . . . . . . . Machines Disabled . | . . . . . . . . . . . . . . Actions | -11 -10 -10 -9 -8 -8 -7 -6 -5 -4 -3 -3 -3 -2 --------- Run | Scr Mat Min Mat Mat Sto Fac Fac Fac Fac Res DSF Gar Res Total 6962 | . 344 335 1040 645 579 832 1252 848 356 228 88 114 301 Wait 695 | . 13 9 241 14 33 28 184 143 2 . 3 4 21 Move 5438 | . 278 297 675 508 437 690 964 639 332 227 83 99 209 Hop . | . . . . . . . . . . . . . . Pick Up 72 | . 9 4 15 11 9 8 9 2 3 . . . 2 Fast Attach 52 | . 4 1 3 3 8 2 11 3 1 1 1 1 13 Attach 57 | . 4 1 5 6 4 9 10 8 2 . . 1 7 Detach 26 | . 3 2 . 2 3 . 7 4 . . . 1 4 Swap 51 | . 2 1 10 15 7 6 6 4 . . . . . Drop 101 | . 1 2 21 22 18 5 21 4 . . 1 1 5 Fire 378 | . 30 18 70 64 59 73 33 16 . . . 2 13 Melee 88 | . . . . . 1 8 7 25 16 . . 5 26 Ram 1 | . . . . . . . . . . . . . 1 Kick . | . . . . . . . . . . . . . . Crush . | . . . . . . . . . . . . . . Escape Stasis 3 | . . . . . . 3 . . . . . . . Rewire . | . . . . . . . . . . . . . . Trap . | . . . . . . . . . . . . . . Miscellaneous . | . . . . . . . . . . . . . . Route ------- -11/Scrapyard -10/Materials (discovered 3 exits: *Mat / [*Min x2]) -10/Mines -9/Materials (discovered 2 exits: *Mat / [*Min]) -8/Materials -8/Storage -7/Factory (discovered 4 exits: *Fac x4) -6/Factory (discovered 5 exits: *Fac x4 / *Low) -5/Factory (discovered 4 exits: *Fac x4) -4/Factory (discovered 9 exits: *Res x4 / Upp x2 / Ext x2 / Arm) -3/Research -3/DSF -3/Garrison -2/Research History --------- Turn | Location | Event 1 | -11/Scrapyard | Discovered new exit (range 0) 1 | -11/Scrapyard | Entered Materials 164 | -10/Materials | Discovered new exit (range 16) 284 | -10/Materials | Discovered new exit (range 7) 317 | -10/Materials | Build established: Mutant 422 | -10/Materials | Discovered new exit (range 6) 434 | -10/Materials | Entered Mines 446 | -10/Mines | Received a Rocket Launcher from a helpful Derelict 451 | -10/Mines | Met a Derelict bent on vengeance 614 | -10/Mines | Found a damaged Exp. Sensor Array with a note attached 617 | -10/Mines | Found Prototype Device 617 | -10/Mines | Identified Exp. Sensor Array 637 | -10/Mines | Learned Materials terminal intel 798 | -10/Mines | Discovered new exit (range 10) 814 | -10/Mines | Entered Materials 814 | -9/Materials | Evolved 2 slots: Utility x2 815 | -9/Materials | Loaded intel: 12 terminal locations 1994 | -9/Materials | Discovered new exit (range 10) 2066 | -9/Materials | Build established: Scavenger-Mutant 2238 | -9/Materials | Lost 3 parts (1p2u) 2466 | -9/Materials | Build established: Mutant 2781 | -9/Materials | Discovered new exit (range 4) 2798 | -9/Materials | Entered another Materials area 2798 | -8/Materials | Evolved 2 slots: Propulsion x1, Weapon x1 3216 | -8/Materials | Build established: Gunner 3598 | -8/Materials | First assault squad dispatched 4139 | -8/Materials | Discovered new exit (range 15) 4184 | -8/Materials | Entered Storage 4214 | -8/Storage | Identified exit to Factory 4216 | -8/Storage | Assisted by bots powering up and referring to "LRC-V3" 4770 | -8/Storage | Build established: Hacker-Tank 5064 | -8/Storage | Garrison activated, responded to threat 5119 | -8/Storage | Core integrity fell below 50% 5336 | -8/Storage | Entered Factory 5336 | -7/Factory | Evolved 2 slots: Utility x2 6478 | -7/Factory | Identified exit to Factory 7178 | -7/Factory | Entered another Factory area 7178 | -6/Factory | Evolved 2 slots: Propulsion x1, Utility x1 7903 | -6/Factory | Lost 3 parts (1p1n1u) 8109 | -6/Factory | Spotted B-75 Beast 8128 | -6/Factory | Identified exit to Factory 8219 | -6/Factory | Discovered new exit (range 7) 8223 | -6/Factory | Identified exit to Lower Caves 8284 | -6/Factory | Entered another Factory area 8284 | -5/Factory | Evolved 2 slots: Utility x2 8299 | -5/Factory | Identified exit to Factory 8589 | -5/Factory | Build established: Hacker-Ninja 8738 | -5/Factory | Entered another Factory area 8738 | -4/Factory | Evolved 2 slots: Propulsion x1, Utility x1 8852 | -4/Factory | Identified exit to Upper Caves 8852 | -4/Factory | Identified exit to Extension 8852 | -4/Factory | Identified exit to Armory 8852 | -4/Factory | Identified exit to Research 8872 | -4/Factory | Entered Research 8872 | -3/Research | Evolved 2 slots: Power x1, Propulsion x1 8874 | -3/Research | Lost 3 parts (2u1w) 8937 | -3/Research | Identified exit to DSF 8937 | -3/Research | Entered DSF 8951 | -3/DSF | Discovered new exit (range 16) 8955 | -3/DSF | Identified exit to Garrison 8964 | -3/DSF | Additional patrols routed to DSF 8985 | -3/DSF | Entered Garrison 8987 | -3/Garrison | Installed Relay Interface Framework 8998 | -3/Garrison | Spotted B-86 Titan 9002 | -3/Garrison | Triggered checkpoint 9014 | -3/Garrison | Discovered new exit (range 12) 9017 | -3/Garrison | Identified exit to Research 9037 | -3/Garrison | Entered Research 9037 | -2/Research | Evolved 2 slots: Utility x2 9065 | -2/Research | Lost 15 parts (6n9u) 9130 | -2/Research | Garrison activated, responded to threat 9201 | -2/Research | Lost 4 parts (1p1u2w) 9330 | -2/Research | Core integrity fell below 50% 9338 | -2/Research | Self-destructed Last Messages --------------- 09272_ P-80 Master suffers critical hit (Impale). 09272_ Destroyed Mic. Antimatter Reactor. 09281_ Acquired Xenon Bombardment Thruster. 09287_ ALERT: Rogue bot located, Programmers report to Research Zone 4F. 09287_ Lgt. Ion Engine destroyed. 09298_ S-43 Plague destroyed. 09301_ Acquired Xenon Bombardment Thruster. 09303_ Xenon Bombardment Thruster destroyed. 09306_ Lance destroyed. 09307_ Slammed into S-43 Plague. 09318_ Rocket Launcher destroyed. 09323_ S-43 Plague destroyed. 09324_ P-80 Master resets S-43 Plague, system corruption cleaned. 09327_ Lgt. Antimatter Reactor destroyed. 09328_ P-80 Master resets S-43 Plague, system corruption cleaned. 09333_ Enh. Nova Cannon destroyed. 09335_ Acquired 25 matter. 09336_ Acquired Xenon Bombardment Thruster. 09336_ Xenon Bombardment Thruster destroyed. 09337_ Acquired 5 matter. Map ----- +----------------------------------------------------+ | ???????????????# """" """ #??# #??? #????? | | ???????????????# """ #??# #????#????? | | ???????????????# #??# #?????????? | | ???????????????# #??# #?????????? | | ???????????????# ####/####+####?? | | ???????????????# # #?? | | ???????????????######## # #?? | | ??????????????????????# # #?? | | ??????????????????????# # #?? | | ??????????????????????# # #?? | | ??????????????????????# #%! #?? | | ??????????????????????# [/%!* #?? | | ??????????????????????# *# ! #?? | | ????????????????############## # #?? | | ????????????????# # # #?? | | ????????????????# # # #?? | | ?????????????????? # # #?? | | ???????????????????""" """ + ##############?? | | ????????????????#? """ """ # #?????????#????? | | ????????????????# """ """ # #??????????????? | | ????????????????# """ """p # #??????????????? | | ????????????????# """ """ # #??????????????? | | ????????????????# """ """ # #? ????????????? | | ????????????????# """ """ # #??????????????? | | ????????????????# s # #??????????????? | | ????????????????#= *@s # #??????????????? | | ????????????????#######;[;#### #??????????????? | | ????????????????????# # #??????????????? | | ????????????????????# # #??????????????? | | ????????????????????# # #??????????????? | | ????????????????????# + ??????????????? | | ????????????????????# # ????????????????? | | ????????????????????# #???????????????????? | | ????????????????????# """ #???????????????????? | | ????????????????????# """ #???????????????????? | | ????????????????????# """ #???????????????????? | | ????????????????????######?###???????????????????? | | ?????????????????????????????????????????????????? | | ?????????????????????????????????????????????????? | | ?????????????????????????????????????????????????? | | ?????????????????????????????????????????????????? | | ?????????????????????????????????????????????????? | | ?????????????????????????????????????????????????? | | ?????????????????????????????????????????????????? | | ?????????????????????????????????????????????????? | | ?????????????????????????????????????????????????? | | ?????????????????????????????????????????????????? | | ?????????????????????????????????????????????????? | | ?????????????????????????????????????????????????? | | ?????????????????????????????????????????????????? | +----------------------------------------------------+ Best States ------------- Heat Dissipation 70 Energy Generation 39 Energy Capacity 410 Matter Stores 300 Matter Capacity 300 Sight Range 20 Robot Scan Range 20 Terrain Scan Density 10 Jamming Range 12 Cloak Strength 2 Armor Coverage 450 Propulsion Shielding 66 Utility Shielding 66 Evasion (%) 74 Targeting Accuracy 5 Melee Accuracy 6 Recoil Reduction 3 Offensive Hacking 30 Defensive Hacking 14 Item Schematics ----------------- None Robot Schematics ------------------ L-31 Rogue | -8/Storage | Hacked Fabricated ------------ Nothing Alien Tech Used ----------------- None Achievements -------------- None Challenges ------------ None Game ------ Seed ThrusterSalvageShotgun Manual? 0 Play Time 01:25:28 Cumulative 299.4 hours Start 2022.06.07 @ 11:36:42 End 2022.06.07 @ 14:28:11 Sessions 1 Manual Loads 0 Difficulty Rogue Special Mode None Game No. 381 Rogue 380 Adventurer 0 Explorer 1 Win Type - Total 6 Types 5/0/0/1/0/0/0/0/0 Lore% 69 Gallery% 80 Achievement% 58 Wizard Run 0 Options --------- ASCII 0 Keyboard 1 Movement Vi Keybinds 0 Fullscreen 1 Font 18/SmallcapsGlow Map View 76x50 Tactical HUD 1 Map Filters NONE Filters NONE Steam 1 RUN: 6e46be87-6774-4e96-b99d-dac2e506bda2